Cogmind - Beta 15 @@@ ROGUE MODE // 2025.05.17 @ 19:56:35 Player: Rubbe Result: Destroyed by Y-54 Guardian with Flak Gun Performance ------------- Evolutions (3) 1500 Regions Visited (6) 1200 Robots Destroyed (44) 220 Value Destroyed (1216) 1216 Prototype IDs (1) 20 Alien Tech Used (0) 0 Bonus (208) 208 TOTAL SCORE: 4364 Bonus ------- Follower Combat Kills 208 Cogmind --------- Core Integrity 0/700 Matter 270/300 Energy 75/100 System Corruption 0% Temperature Cool (18) Movement Core (250) Ox4 Location -7/Factory Parts ------- > --- POWER (1) -------- (None) > --- PROPULSION (5) --- (None) > --- UTILITY (4) ------ Medium Storage Unit > --- WEAPON (3) ------- Flak Gun > --- INVENTORY (10) --- Structural Scanner Sensor Array Seismic Detector Peak State ------------ > --- POWER ------------ Improved Ion Engine > --- PROPULSION ------- Aluminum Leg Improved Aluminum Leg Improved Aluminum Leg Improved Aluminum Leg > --- UTILITY ---------- Improved Heat Sink Medium Storage Unit Improved Terrain Scanner Terrain Scan Processor > --- WEAPON ----------- Arc Projector Ion Cannon Ion Cannon > --- INVENTORY -------- Ion Engine Structural Scanner Sensor Array Seismic Detector Improved Targeting Computer Arc Projector Arc Projector Heavy Assault Rifle Mining Laser [Rating: 29] Favorites ----------- Power Ion Engine Engine Ion Engine Power Core Light Nuclear Core Propulsion Aluminum Leg Leg Aluminum Leg Wheel Wheel Utility Medium Storage Unit Device Improved Terrain Scanner Storage Medium Storage Unit Processor Terrain Scan Processor Protection Medium Armor Plating Weapon Beam Cannon Energy Gun Medium Laser Energy Cannon Beam Cannon Ballistic Gun Light Assault Rifle Special Weapon Mining Laser Build | -11 -10 -10 -9 -9 -8 -7 ------- Run | Yrd Mat Min Mat Sto Mat Fac Slots Evolved 6 | . . . 2 . 2 2 Power . | . . . . . . . Propulsion 3 | . . . 1 . 1 1 Utility 2 | . . . 1 . 1 . Weapon 1 | . . . . . . 1 Parts Attached 49 | 7 4 6 2 18 4 8 Power 7 | 1 1 1 . 2 1 1 Engine 6 | 1 1 . . 2 1 1 Core 1 | . . 1 . . . . Reactor . | . . . . . . . Propulsion 17 | 2 2 2 1 9 1 . Treads . | . . . . . . . Leg 10 | . . . . 9 1 . Wheel 7 | 2 2 2 1 . . . Hover . | . . . . . . . Flight . | . . . . . . . Utility 11 | 2 1 1 1 4 1 1 Device 5 | 1 . 1 . 3 . . Storage 2 | 1 1 . . . . . Processor 3 | . . . 1 . 1 1 Hackware . | . . . . . . . Protection 1 | . . . . 1 . . Artifact . | . . . . . . . Weapon 14 | 2 . 2 . 3 1 6 Energy Gun 5 | . . 1 . 1 1 2 Energy Cannon 4 | . . 1 . 2 . 1 Ballistic Gun 4 | 2 . . . . . 2 Ballistic Cannon . | . . . . . . . Launcher . | . . . . . . . Special Weapon 1 | . . . . . . 1 Impact Weapon . | . . . . . . . Slashing Weapon . | . . . . . . . Piercing Weapon . | . . . . . . . Special Melee Weapon . | . . . . . . . Unidentified Prototypes 1 | . . 1 . . . . Corrupted Parts 1 | . . . . 1 . . System Corruption 2 | . . . . 2 . . Parts Lost 29 | . 3 3 . 6 . 17 Power 4 | . . 1 . 1 . 2 Propulsion 9 | . 2 2 . 1 . 4 Utility 7 | . . . . 3 . 4 Weapon 9 | . 1 . . 1 . 7 Highest Loss Streak 17 | . 2 3 . 4 . 17 To Critical Strikes . | . . . . . . . Average Backups 9 | 3 8 9 10 9 9 7 Power 1 | 1 1 . 1 1 1 . Propulsion . | 1 1 1 . . . . Utility 3 | . 2 3 3 2 3 3 Weapon 4 | . 3 3 5 5 5 3 Tool/Special . | . . . . . . . Unused Backups 8 | . 2 1 . 2 . 3 Power . | . . . . . . . Propulsion . | . . . . . . . Utility 5 | . . 1 . 1 . 3 Weapon 3 | . 2 . . 1 . . Tool/Special . | . . . . . . . Average Slot Usage (%) 94 | . 93 98 88 95 99 76 Engine 7 | . 14 5 . 6 9 5 Core 4 | . . 7 11 4 . . Leg 15 | . . . . 26 36 23 Wheel 12 | . 22 26 25 4 . . Device 15 | . 14 14 11 18 18 10 Storage 11 | . 14 14 11 11 9 7 Processor 2 | . . . 7 1 8 7 Energy Gun 6 | . . 13 11 1 9 5 Energy Cannon 13 | . . 14 11 19 9 11 Ballistic Gun 2 | . 28 . . . . . Peak Build Rating 29 | 9 10 18 20 20 26 29 Average Rating 16 | 4 9 16 19 15 25 22 On Entrance 14 | . 9 9 18 20 18 26 Naked Turns . | . . . . . . . Heaviest Build 35 | 14 19 21 21 32 27 35 Greatest Support 49 | 26 26 20 36 36 49 49 Greatest Overweight (x) 6 | . 6 6 1 6 . 5 Average Overweight (x) . | . . 1 . . . . Largest Inventory Capacity 10 | 8 10 10 10 10 10 10 Average Capacity 9 | 7 9 10 10 10 10 10 Most Carried 10 | 6 10 10 10 10 10 9 Average Carried 9 | 4 9 9 9 9 9 7 Final Capacity 10 | 8 10 10 10 10 10 10 Final Carried 10 | 5 9 10 10 10 10 3 Class Distribution -------------------- 48% | Mutant 43% | Scavenger-Mutant 7% | Scavenger-Skirmisher Dominant Class ---------------- Mutant | -10/Materials Mutant | -10/Mines Mutant | -9/Materials Scavenger-Mutant | -9/Storage Scavenger-Mutant | -8/Materials Scavenger-Skirmisher | -7/Factory Resources | -11 -10 -10 -9 -9 -8 -7 ----------- Run | Yrd Mat Min Mat Sto Mat Fac Matter Collected 794 | 322 126 60 . 175 70 41 Remotely . | . . . . . . . Salvage Created 1754 | 163 222 238 . 853 85 193 Parts 96 | 7 9 9 . 55 10 6 Haulers Intercepted 2 | . . . . 1 1 . Recyclers Shooed 2 | . . 2 . . . . Parts Field Recycled . | . . . . . . . Retrieved Matter . | . . . . . . . Parts Self-Destructed . | . . . . . . . Prevented . | . . . . . . . Kills | -11 -10 -10 -9 -9 -8 -7 ------- Run | Yrd Mat Min Mat Sto Mat Fac Combat Hostiles Destroyed 29 | . 5 2 . 18 . 4 Guns 8 | . 5 2 . . . 1 Cannons 19 | . . . . 17 . 2 Classes Destroyed 9 | 2 2 1 . 4 . . Worker 2 | . 1 . . 1 . . Builder 1 | . . . . 1 . . Tunneler 6 | 3 . 2 . . 1 . Hauler 2 | . . . . 1 1 . Recycler 3 | 1 . 2 . . . . Watcher 1 | . . . . 1 . . Swarmer 2 | . . 2 . . . . Grunt 23 | . 5 . . 15 . 3 Sentry 4 | . . . . 3 . 1 Best Kill Streak 6 | 2 4 3 . 6 1 2 Combat Bots Only 5 | . 3 2 . 5 . 2 Max Kills in Single Turn 1 | 1 1 1 . 1 1 1 Gunslinging . | . . . . . . . Exploded . | . . . . . . . Melee . | . . . . . . . Uniques/NPCs Destroyed . | . . . . . . . Combat | -11 -10 -10 -9 -9 -8 -7 -------- Run | Yrd Mat Min Mat Sto Mat Fac Hostile Shots Fired 502 | . 55 46 . 80 8 313 Missed 148 | . 14 10 . 20 4 100 Hits 354 | . 41 36 . 60 4 213 Projectile 354 | . 41 36 . 60 4 213 Critical Strikes 1 | . . . . . . 1 Damage Taken 3529 | . 445 288 . 833 62 1901 Core 1001 | . 39 104 . 141 17 700 Absorbed by Shields . | . . . . . . . Core Remaining (%) 75 | 100 . 42 . 64 96 . Volleys Fired 134 | 13 25 10 . 58 5 23 Largest 3 | 2 2 2 . 2 2 3 Hottest 175 | 40 40 110 . 120 115 175 Shots Fired 252 | 26 50 20 . 111 10 35 Gun 116 | 26 50 10 . 5 5 20 Cannon 134 | . . 10 . 106 5 13 Launcher . | . . . . . . . Special 2 | . . . . . . 2 Kinetic 87 | 26 50 . . . . 11 Thermal 151 | . . 20 . 111 5 15 Explosive . | . . . . . . . Electromagnetic 14 | . . . . . 5 9 Robot Hit Streak 11 | 7 7 5 . 8 5 11 Robot Miss Streak 4 | 1 4 2 . 4 2 2 Penetration Max . | . . . . . . . Secondary Targets . | . . . . . . . Shots Hit Robots 159 | 19 30 10 . 66 7 27 Core Hits 72 | 6 13 7 . 27 3 16 Critical Kills 2 | . . . . 1 . 1 Critical Parts Destroyed . | . . . . . . . Critical Strikes 3 | . . . . 2 . 1 Burn 1 | . . . . 1 . . Meltdown 2 | . . . . 1 . 1 Melee Attacks . | . . . . . . . Impact . | . . . . . . . Slashing . | . . . . . . . Piercing . | . . . . . . . Sneak Attacks . | . . . . . . . Combat Hostiles . | . . . . . . . Follow-up Attacks . | . . . . . . . Damage Inflicted 2691 | 188 342 154 . 1329 148 530 Guns 961 | 188 342 51 . 50 32 298 Cannons 1701 | . . 103 . 1274 116 208 Explosions . | . . . . . . . Melee . | . . . . . . . Ramming 5 | . . . . 5 . . Kinetic 744 | 188 342 . . . . 214 Thermal 1826 | . . 154 . 1324 116 232 Explosive . | . . . . . . . Electromagnetic 116 | . . . . . 32 84 Impact . | . . . . . . . Slashing . | . . . . . . . Piercing . | . . . . . . . Highest Corruption 2 | . . . . 2 . . Average Corruption 2 | . . . . 2 . . Corruption Purged . | . . . . . . . Corruption Blocked . | . . . . . . . Effects 7 | . . . . 7 . . Message Errors 1 | . . . . 1 . . Heat Flow Errors 1 | . . . . 1 . . Energy Discharges 2 | . . . . 2 . . Parts Fused 1 | . . . . 1 . . Data Loss (minor) 2 | . . . . 2 . . Overload Shots . | . . . . . . . Overflow Damage 22 | . . . . 7 . 15 Projectiles 22 | . . . . 7 . 15 Explosions . | . . . . . . . Melee . | . . . . . . . Knockbacks . | . . . . . . . Impact . | . . . . . . . Kinetic . | . . . . . . . Secondary . | . . . . . . . Self-Inflicted Damage . | . . . . . . . Shots . | . . . . . . . Rammed . | . . . . . . . Targets Rammed 1 | . . . . 1 . . Kicked 1 | . . . . 1 . . Crushed . | . . . . . . . Highest Temperature 432 | . 44 180 . 432 10 290 Average Temperature 85 | . 16 66 . 99 6 94 Received Heat Transfer 1371 | . 225 . . 375 18 753 Effects 7 | . . . . 3 . 4 Energy Bleed 1 | . . . . . . 1 Interference 5 | . . . . 2 . 3 Short Circuit 1 | . . . . 1 . . Siege Activations . | . . . . . . . Martial Activations . | . . . . . . . Shielding Activations . | . . . . . . . Robots Disrupted . | . . . . . . . Combat Hostiles . | . . . . . . . Robots Corrupted . | . . . . . . . Combat Hostiles . | . . . . . . . Parts Fried . | . . . . . . . Impact Corruptions . | . . . . . . . Robots Melted 2 | . . . . 1 . 1 Combat Hostiles 2 | . . . . 1 . 1 Parts Melted 7 | . . 1 . 4 . 2 Heat Transferred 3528 | . . 370 . 2590 185 383 Parts Sabotaged . | . . . . . . . Parts Stolen . | . . . . . . . Parts Stripped . | . . . . . . . Power Chain Reactions . | . . . . . . . Alert | -11 -10 -10 -9 -9 -8 -7 ------- Run | Yrd Mat Min Mat Sto Mat Fac Maximum Alert Level 1 | . . . . 1 . . Low Security (%) 94 | 100 100 100 100 84 100 100 Level 1 5 | . . . . 15 . . Level 2 . | . . . . . . . Level 3 . | . . . . . . . Level 4 . | . . . . . . . Level 5 . | . . . . . . . High Security . | . . . . . . . Max Security . | . . . . . . . Peak Influence 243 | 5 70 50 . 243 81 139 Initial 81 | . 3 13 . . 81 24 Average 46 | 1 27 5 . 96 45 58 Influence Increases 1211 | 20 125 70 . 583 103 310 Destroy 0b10 Robot/C 700 | . 100 40 . 360 40 160 Destroy 0b10 Robot/NC 80 | 20 5 20 . 20 15 . Destroy Leader 166 | . 20 10 . 84 22 30 Allied During Kill 25 | . . . . . 11 14 Successful Hack 21 | . . . . 21 . . Disable Machine 90 | . . . . 45 . 45 Destroy Structure 9 | . . . . 8 . 1 Partial Spotted 15 | . . . . . 15 . Lose Combat Pursuer 105 | . . . . 45 . 60 Influence Decreases 1191 | 15 95 105 . 388 244 344 Entered New Map 168 | . 2 22 . . 114 30 Time Decay 733 | 15 63 83 . 328 130 114 Lost Part 250 | . 30 . . 60 . 160 Lost Ally 40 | . . . . . . 40 Squads Dispatched 11 | . 2 . . 5 . 4 Investigation 6 | . 1 . . 3 . 2 Extermination . | . . . . . . . Reinforcement 1 | . 1 . . . . . Assault 2 | . . . . 2 . . Garrison 2 | . . . . . . 2 Intercept . | . . . . . . . Searches Triggered . | . . . . . . . Construction Impeded . | . . . . . . . Haulers Reinforced . | . . . . . . . Active Scanning Responses . | . . . . . . . Cargo Convoy Interrupts . | . . . . . . . Stealth | -11 -10 -10 -9 -9 -8 -7 --------- Run | Yrd Mat Min Mat Sto Mat Fac Distress Signals 4 | . 1 . . 1 1 1 Communications Jammed . | . . . . . . . Distress Signals . | . . . . . . . Times Spotted 52 | . 14 3 . 22 4 9 Peak Tracking Total 7 | . 7 3 . 4 2 6 Tactical Retreats 2 | . . . . 1 . 1 Traps | -11 -10 -10 -9 -9 -8 -7 ------- Run | Yrd Mat Min Mat Sto Mat Fac Traps Triggered 3 | . . . . 3 . . Indirectly . | . . . . . . . Trap Hack Attempts . | . . . . . . . Triggered . | . . . . . . . Disarmed . | . . . . . . . Reprogrammed . | . . . . . . . Reused . | . . . . . . . Traps Extracted . | . . . . . . . Installed . | . . . . . . . Triggered . | . . . . . . . Machines | -11 -10 -10 -9 -9 -8 -7 ---------- Run | Yrd Mat Min Mat Sto Mat Fac Machines Disabled 6 | . . . . 3 . 3 Max in Single Turn 1 | . . . . 1 . . Machines Repaired . | . . . . . . . Machines Dismantled . | . . . . . . . Machines Sabotaged . | . . . . . . . Overloaded Fab Kills . | . . . . . . . Hacking | -11 -10 -10 -9 -9 -8 -7 --------- Run | Yrd Mat Min Mat Sto Mat Fac Machines Accessed 7 | . 1 . . 4 . 2 Terminals 5 | . 1 . . 3 . 1 Fabricators . | . . . . . . . Repair Stations . | . . . . . . . Recycling Units 1 | . . . . 1 . . Scanalyzers . | . . . . . . . Garrison Access 1 | . . . . . . 1 Total Hacks 24 | . 3 . . 15 . 6 Successful 9 | . . . . 8 . 1 Failed 15 | . 3 . . 7 . 5 Catastrophic 4 | . . . . 1 . 3 Database Lockouts . | . . . . . . . Manual . | . . . . . . . Terminals 18 | . 3 . . 12 . 3 Fabricators . | . . . . . . . Repair Stations . | . . . . . . . Recycling Units 3 | . . . . 3 . . Scanalyzers . | . . . . . . . Garrison Access 3 | . . . . . . 3 Terminal Hacks 7 | . . . . 6 . 1 Record 2 | . . . . 2 . . Part Schematic 2 | . . . . 2 . . Robot Analysis 1 | . . . . 1 . . Branch Access Points 1 | . . . . 1 . . Hauler Manifests 1 | . . . . . . 1 Fabricator Hacks . | . . . . . . . Repair Station Hacks . | . . . . . . . Recycling Unit Hacks 2 | . . . . 2 . . Recycle Component 1 | . . . . 1 . . Process 1 | . . . . 1 . . Scanalyzer . | . . . . . . . Garrison Access Hacks . | . . . . . . . Unauthorized Hacks . | . . . . . . . Terminals . | . . . . . . . Fabricators . | . . . . . . . Repair Stations . | . . . . . . . Recycling Units . | . . . . . . . Scanalyzers . | . . . . . . . Garrison Access . | . . . . . . . Data Cores Recovered . | . . . . . . . Used . | . . . . . . . Hacking Detections 7 | . 1 . . 4 . 2 Full Trace Events 7 | . 1 . . 4 . 2 Feedback Events . | . . . . . . . Feedback Blocked . | . . . . . . . Robot Schematics Acquired . | . . . . . . . Robots Built . | . . . . . . . Authchips . | . . . . . . . Time . | . . . . . . . Total Robot Build Rating . | . . . . . . . Part Schematics Acquired 2 | . . . . 2 . . Parts Built . | . . . . . . . Authchips . | . . . . . . . Time . | . . . . . . . Total Part Build Rating . | . . . . . . . Parts Repaired . | . . . . . . . Time . | . . . . . . . Parts Recycled 1 | . . . . 1 . . Recycled Matter 6 | . . . . 6 . . Retrieved Matter . | . . . . . . . Retrieved Components . | . . . . . . . Parts Scanalyzed . | . . . . . . . Part Schematics Acquired . | . . . . . . . Parts Damaged . | . . . . . . . Bothacking | -11 -10 -10 -9 -9 -8 -7 ------------ Run | Yrd Mat Min Mat Sto Mat Fac Used RIF Installer . | . . . . . . . Robots Hacked . | . . . . . . . Non-combat . | . . . . . . . Combat . | . . . . . . . Robot Hacks Applied . | . . . . . . . Relay Couplers Released . | . . . . . . . Fabnet Peak Effective % . | . . . . . . . Robots Rewired . | . . . . . . . Allies Hacked . | . . . . . . . Hacks Repelled . | . . . . . . . Allies | -11 -10 -10 -9 -9 -8 -7 -------- Run | Yrd Mat Min Mat Sto Mat Fac Total Allies 3 | . . 1 . 2 . . Largest Group 2 | . . 1 . 2 2 2 Highest-Rated Group 62 | . . 31 . 62 62 62 Highest-Rated Ally 31 | . . 31 . 31 31 31 Total Orders . | . . . . . . . Ally Attacks 32 | . . . . . 10 22 Total Damage 422 | . . . . . 128 294 Kills 7 | . . . . . 3 4 Allies Corrupted . | . . . . . . . Allies Melted . | . . . . . . . Intel | -11 -10 -10 -9 -9 -8 -7 ------- Run | Yrd Mat Min Mat Sto Mat Fac Active Infowar (turns) 2114 | 8 208 739 15 713 260 171 Sensors 712 | . . 639 15 58 . . Terrain 1315 | 8 208 100 . 568 260 171 Seismic 102 | . . . . 102 . . Robot Analysis Total 1 | . . . . 1 . . Derelict Logs Recovered 3 | . . 3 . . . . Drone Launches . | . . . . . . . Drone Recoveries . | . . . . . . . Exploration | -11 -10 -10 -9 -9 -8 -7 ------------- Run | Yrd Mat Min Mat Sto Mat Fac Turns Passed 2353 | 118 208 739 15 766 260 247 Spaces Moved 1671 | 76 118 710 13 419 196 139 Core 34 | 14 3 7 . 2 . 8 Treads . | . . . . . . . Legs 684 | . . . . 357 196 131 Wheels 953 | 62 115 703 13 60 . . Hover . | . . . . . . . Flight . | . . . . . . . Fastest Speed 50 | 50 80 95 86 80 120 120 Average Speed 108 | 82 92 97 88 126 120 127 Slowest Speed 350 | 90 350 350 95 350 120 300 Overloaded Moves . | . . . . . . . Propulsion Burnouts . | . . . . . . . Robots Hopped . | . . . . . . . Potential Cave-ins . | . . . . . . . Cave-ins Triggered . | . . . . . . . Exploration Rate (%) 29 | 4 31 93 2 51 19 3 Regions Visited 6 Branch Regions 2 Pre-discovered Areas 2 | . . 1 . 1 . . Known Exits Taken 1 | . . 1 . . . . Unknown Exits Taken 5 | 1 1 . 1 1 1 . Scrap Searched 2 | . . 2 . . . . Spaces Dug . | . . . . . . . Terrain Destroyed 4 | . . . . 4 . . Melee . | . . . . . . . Projectile 4 | . . . . 4 . . AOE . | . . . . . . . Terrain Rammed . | . . . . . . . Walls Destroyed . | . . . . . . . Machines Disabled . | . . . . . . . Actions | -11 -10 -10 -9 -9 -8 -7 --------- Run | Yrd Mat Min Mat Sto Mat Fac Total 1967 | 107 172 736 16 550 212 174 Wait 31 | . 12 . . 18 . 1 Move 1665 | 75 117 709 12 418 195 139 Hop . | . . . . . . . Pick Up 59 | 12 10 8 2 21 5 1 Fast Attach . | . . . . . . . Attach 36 | 7 2 4 2 11 2 8 Detach 1 | . . . . 1 . . Swap 16 | . 2 2 . 8 2 2 Drop 24 | . 4 3 . 14 3 . Fire 134 | 13 25 10 . 58 5 23 Melee . | . . . . . . . Ram . | . . . . . . . Kick 1 | . . . . 1 . . Crush . | . . . . . . . Escape Stasis . | . . . . . . . Rewire . | . . . . . . . Trap . | . . . . . . . Miscellaneous . | . . . . . . . Route ------- -11/Scrapyard -10/Materials -10/Mines (discovered 2 exits: *Mat x2) -9/Materials -9/Storage (discovered 2 exits: [*Mat] / Rec) -8/Materials -7/Factory History --------- Turn | Location | Event 20 | -11/Scrapyard | Discovered new exit (range 15) 119 | -11/Scrapyard | Entered Materials 316 | -10/Materials | Build established: Mutant 320 | -10/Materials | Discovered new exit (range 8) 327 | -10/Materials | Entered Mines 423 | -10/Mines | Found a damaged Exp. Sensor Array with a note attached 426 | -10/Mines | Found Prototype Device 427 | -10/Mines | Identified Exp. Sensor Array 463 | -10/Mines | Identified exit to Materials 471 | -10/Mines | Learned location of Mines (-9) 536 | -10/Mines | Found a hidden stash of uninstalled traps 624 | -10/Mines | Core integrity fell below 50% 658 | -10/Mines | Lost 3 parts (1p2n) 838 | -10/Mines | Received a Mining Laser from a helpful Derelict 1066 | -10/Mines | Entered Materials 1066 | -9/Materials | Evolved 2 slots: Propulsion x1, Utility x1 1066 | -9/Materials | Discovered new exit (range 9) 1081 | -9/Materials | Entered Storage 1191 | -9/Storage | Lost 4 parts (1n2u1w) 1485 | -9/Storage | Build established: Scavenger-Mutant 1594 | -9/Storage | Identified exit to Recycling 1620 | -9/Storage | Learned location of Armory (-3) 1816 | -9/Storage | Met a pair of Derelict thieves 1838 | -9/Storage | Discovered new exit (range 7) 1847 | -9/Storage | Entered Materials 1847 | -8/Materials | Accompanied by 2 allies 1847 | -8/Materials | Evolved 2 slots: Propulsion x1, Utility x1 2093 | -8/Materials | Discovered new exit (range 9) 2107 | -8/Materials | Entered Factory 2107 | -7/Factory | Accompanied by 2 allies 2107 | -7/Factory | Evolved 2 slots: Propulsion x1, Weapon x1 2239 | -7/Factory | Garrison activated, responded to threat 2315 | -7/Factory | Core integrity fell below 50% 2330 | -7/Factory | Core integrity fell below 20% 2354 | -7/Factory | Destroyed by Y-54 Guardian with Flak Gun Last Messages --------------- Imp. Aluminum Leg destroyed. Ion Cannon destroyed. Terminal disabled. Hvy. Assault Rifle destroyed. Imp. Aluminum Leg destroyed. Arc Projector destroyed. M-28 Smith repairs G-47 Trooper Aluminum Leg. Arc Projector destroyed. Imp. Aluminum Leg destroyed. Ion Engine destroyed. Acquired 26 matter. Mining Laser destroyed. G-47 Trooper destroyed. Acquired 15 matter. Terrain Scan Processor destroyed. Imp. Targeting Computer destroyed. Ion Cannon destroyed. Acquired Flak Gun. R-06 Scavenger collects Imp. Heat Sink. K-01 Serf cleans the Assembly Bed. Map ----- +----------------------------------------------------+ | ?????????????????????????????????????????????????? | | ?????????????????????????????????????????????????? | | ?????????????????????????????????????????????????? | | ?????????????????????????????????????????????????? | | ???????????????????????????????????????????????? ? | | ?????????????????????????????????????????????????? | | ?????????????????????????????????????????????????? | | ?????????????????????????#???????????????? ????? ? | | ?????????????????????????????????? ???? "?????? | | ???????????????????????? ???? ? ? ? ???? "?" ? | | ???????????????#?? ?? ? ? ??? ? ??? ? | | ??????????????????? ???? ??????? ?"" "?" + | | ?????????????? #? ? ???? ?? ? """ """ # | | ?????????? ??? # ? ??#??#?#??##?##?## """ """ # | | ????????????"???? ?????? ?? ? ??# """ ""% # | | ???????????? ??#? ?? #?""""?"?"?? # # | | ????????????? ?????????? ? ? ?? ???# ""% # | | ?????????? ????? ????? ???? ??? # ""% # | | ???????????""? #????????"??"??? ? ?# ""% # | | ?????????? ???????? ?#?"?"?"?? ?? ?# %= """ | | ????????????###? ?? ??????"" ??# " # | | ??????? ??? ????? ?######? ####?## "" """ ! # | | ?????????? ? ??? ???################ G """ # | | ?????????? ????? ?# """""" # "" """ # | | ????????????? ??? ??# = """""" # "= """ | | ????????? ? ? ?? ? # *%@"""""" + %[ # | | ????????????? ?# ?? ?# Y r"""""" # !![! # | | ????????? ? ????????## r m k # !% ######## | | ???????????+#???#??#?# # #??##### | | ??????????????#??????################ # ?? | | ???????????? ??#????##???#??####??## # ?? ??? | | ????????? " ????? ????##??????? # # ? ??? | | ????????????? ?#???????#??#? ? ?? # # ???"" | | ????????????? #?##???????##? ? ?? ?# #?? ???? | | ????????????????####?#?#?#?# ? ??# #?? ???? | | ?????????????##?##?##?#????? ?? ??# # ???""? | | ?????????????????##??##???#? ?? ? ?# #?? ""?? | | ??????????????????????#?###? ???? ? # #? ?"??? | | ???????????????????#???###?# ?? ??# #?? ?"?? | | ???????????????? ??? ??? ?#? ???? ?+ +??????? | | ????????????????? ???????? ??? ? ?? ? ???????? | | ???????????????????????? ??????? ???????????????? | | ?????????????????? ????????#?? ? ????????????????? | | ?????????????????????????????????????????????????? | | ?????????????????????????????????????????????????? | | ?????????????????????????????????????????????????? | | ?????????????????????????????????????????????????? | | ?????????????????????????????????????????????????? | | ?????????????????????????????????????????????????? | | ?????????????????????????????????????????????????? | +----------------------------------------------------+ Best States ------------- Heat Dissipation 48 Energy Generation 14 Energy Capacity 265 Matter Stores 300 Matter Capacity 300 Sight Range 16 Robot Scan Range 20 Terrain Scan Range 16 Terrain Scan Density 85 Armor Coverage 225 Evasion (%) 55 Targeting Accuracy 6 Item Schematics ----------------- Adv. Targeting Computer | -9/Storage | Hacked Plasma Cannon | -9/Storage | Hacked Robot Schematics ------------------ None Fabricated ------------ Nothing Repaired ---------- Nothing Alien Tech Used ----------------- None Achievements -------------- None Challenges ------------ None Game ------ Seed TripodMissileHarness Manual? 0 Play Time 00:30:32 Cumulative 10.2 hours Start 2025.05.17 @ 19:28:56 End 2025.05.17 @ 19:56:35 Sessions 1 Manual Loads 0 Difficulty Rogue Special Mode None Game No. 40 Rogue 40 Adventurer 0 Explorer 0 Win Type - Total 0 Types 0/0/0/0/0/0/0/0/0/0 Lore% 6 Gallery% 16 Achievement% 18 Wizard Run 0 Options --------- Layout 1 ASCII 0 Keyboard 0 Movement Mouse Keybinds 0 Fullscreen 1 Font 24/Smallcaps Map View 50x35 Zoom Use 0% Tactical HUD 0 Map Filters NONE Filters NONE Steam 1 RUN: 7f5354e1-589b-46df-a38a-d9788627919b